[Event "Late-Titled-Tuesday-Blitz-April-16-2024"]
[Site "Chess.com"]
[Date "2024.04.16"]
[Round "5"]
[White "IndianSchoolOfSuffering"]
[Black "Cuchulin"]
[Result "1-0"]
[WhiteElo "2440"]
[BlackElo "2214"]
[TimeControl "180+1"]
[EndTime "14:50:44 PDT"]
[Termination "IndianSchoolOfSuffering won by resignation"]

1. c4 {[%clk 0:02:55.4]} 1... e6 {[%clk 0:02:59]} 2. Nf3 {[%clk 0:02:53.6]} 2...
d5 {[%clk 0:02:59.6]} 3. g3 {[%clk 0:02:53.3]} 3... d4 {[%clk 0:02:59.1]} 4. Bg2
{[%clk 0:02:52]} 4... c5 {[%clk 0:02:59]} 5. b4 {[%clk 0:02:51.5]} 5... Nf6
{[%clk 0:02:55.9]} 6. O-O {[%clk 0:02:49.9]} 6... Be7 {[%clk 0:02:55.9]} 7. d3
{[%clk 0:02:46]} 7... O-O {[%clk 0:02:55]} 8. Nbd2 {[%clk 0:02:39.2]} 8... Nc6
{[%clk 0:02:50.7]} 9. b5 {[%clk 0:02:35.9]} 9... Nb8 {[%clk 0:02:50.6]} 10. Nb3
{[%clk 0:02:30.9]} 10... b6 {[%clk 0:02:50.6]} 11. Ne5 {[%clk 0:02:28.9]} 11...
Qc7 {[%clk 0:02:40.3]} 12. Bxa8 {[%clk 0:02:16.7]} 12... Qxe5 {[%clk 0:02:39.6]}
13. Bf3 {[%clk 0:02:12.4]} 13... Qc7 {[%clk 0:02:37.1]} 14. Bf4 {[%clk
0:02:11.6]} 14... e5 {[%clk 0:02:36.9]} 15. Bg5 {[%clk 0:02:10.9]} 15... Nbd7
{[%clk 0:02:34.2]} 16. a4 {[%clk 0:02:06.8]} 16... Bb7 {[%clk 0:02:33.7]} 17. a5
{[%clk 0:02:04.2]} 17... e4 {[%clk 0:02:27.8]} 18. Bg2 {[%clk 0:02:00.5]} 18...
exd3 {[%clk 0:02:17.5]} 19. exd3 {[%clk 0:01:59.2]} 19... Bxg2 {[%clk
0:02:17.3]} 20. Kxg2 {[%clk 0:01:58.2]} 20... h6 {[%clk 0:02:17.6]} 21. Bxf6
{[%clk 0:01:58.2]} 21... Nxf6 {[%clk 0:02:14.7]} 22. Qf3 {[%clk 0:01:57]} 22...
Bd6 {[%clk 0:02:13.6]} 23. axb6 {[%clk 0:01:56.2]} 23... axb6 {[%clk 0:02:13.5]}
24. Ra8 {[%clk 0:01:55.9]} 24... Rxa8 {[%clk 0:02:11.3]} 25. Qxa8+ {[%clk
0:01:56.8]} 25... Kh7 {[%clk 0:02:10.7]} 26. Ra1 {[%clk 0:01:55.3]} 26... Qe7
{[%clk 0:02:08.5]} 27. Qf3 {[%clk 0:01:54.5]} 27... g5 {[%clk 0:02:00.1]} 28.
Nd2 {[%clk 0:01:52.1]} 28... g4 {[%clk 0:01:58.7]} 29. Qf5+ {[%clk 0:01:51.2]}
29... Kg7 {[%clk 0:01:59.2]} 30. Ne4 {[%clk 0:01:50.8]} 30... Nxe4 {[%clk
0:01:56.8]} 31. Qxe4 {[%clk 0:01:39.4]} 31... Qd7 {[%clk 0:01:54.4]} 32. f4
{[%clk 0:01:27]} 32... gxf3+ {[%clk 0:01:52.6]} 33. Qxf3 {[%clk 0:01:26.9]}
33... Qe7 {[%clk 0:01:42.5]} 34. Rf1 {[%clk 0:01:26.3]} 34... Qe6 {[%clk
0:01:41.4]} 35. Qe4 {[%clk 0:01:25.2]} 35... Qd7 {[%clk 0:01:39.3]} 36. Rf5
{[%clk 0:01:24.2]} 36... Be7 {[%clk 0:01:32.6]} 37. Qg4+ {[%clk 0:01:18]} 37...
Kf8 {[%clk 0:01:30.3]} 38. Rxf7+ {[%clk 0:01:17]} 1-0

[Event "Late-Titled-Tuesday-Blitz-April-16-2024"]
[Site "Chess.com"]
[Date "2024.04.16"]
[Round "5"]
[White "Boorchess"]
[Black "DraningWaterHi"]
[Result "1-0"]
[WhiteElo "2487"]
[BlackElo "2210"]
[TimeControl "180+1"]
[EndTime "14:50:46 PDT"]
[Termination "Boorchess won by resignation"]

1. d4 {[%clk 0:03:00.9]} 1... Nf6 {[%clk 0:02:59.1]} 2. Nf3 {[%clk 0:03:00.5]}
2... g6 {[%clk 0:02:59.3]} 3. Bg5 {[%clk 0:02:59.8]} 3... Bg7 {[%clk 0:02:59.7]}
4. Nbd2 {[%clk 0:02:58.9]} 4... O-O {[%clk 0:02:59.4]} 5. c3 {[%clk 0:02:58.8]}
5... d6 {[%clk 0:02:57.6]} 6. e4 {[%clk 0:02:57.6]} 6... h6 {[%clk 0:02:57.7]}
7. Bh4 {[%clk 0:02:56.8]} 7... g5 {[%clk 0:02:58.2]} 8. Bg3 {[%clk 0:02:56.8]}
8... Nh5 {[%clk 0:02:58.1]} 9. Bd3 {[%clk 0:02:54.9]} 9... Nxg3 {[%clk
0:02:57.3]} 10. hxg3 {[%clk 0:02:54.9]} 10... e5 {[%clk 0:02:57.3]} 11. dxe5
{[%clk 0:02:46.8]} 11... dxe5 {[%clk 0:02:56.8]} 12. Qe2 {[%clk 0:02:46]} 12...
Be6 {[%clk 0:02:55.4]} 13. Bc4 {[%clk 0:02:44.3]} 13... Qe7 {[%clk 0:02:52.5]}
14. Bxe6 {[%clk 0:02:42.9]} 14... Qxe6 {[%clk 0:02:53.4]} 15. Qc4 {[%clk
0:02:41.6]} 15... Qxc4 {[%clk 0:02:52.8]} 16. Nxc4 {[%clk 0:02:41.3]} 16... Nc6
{[%clk 0:02:52]} 17. Ne3 {[%clk 0:02:40.1]} 17... Rad8 {[%clk 0:02:42]} 18. Ke2
{[%clk 0:02:38.2]} 18... Ne7 {[%clk 0:02:40.2]} 19. g4 {[%clk 0:02:32.3]} 19...
Ng6 {[%clk 0:02:38.8]} 20. g3 {[%clk 0:02:32.4]} 20... Ne7 {[%clk 0:02:38.7]}
21. a4 {[%clk 0:02:28]} 21... c6 {[%clk 0:02:38.9]} 22. a5 {[%clk 0:02:27.3]}
22... a6 {[%clk 0:02:38.5]} 23. Nd2 {[%clk 0:02:20.7]} 23... Nc8 {[%clk
0:02:35.3]} 24. Ndc4 {[%clk 0:02:19.8]} 24... Nd6 {[%clk 0:02:35.8]} 25. Nxd6
{[%clk 0:02:18.7]} 25... Rxd6 {[%clk 0:02:36.7]} 26. Rhd1 {[%clk 0:02:17.8]}
26... Rfd8 {[%clk 0:02:36]} 27. Rxd6 {[%clk 0:02:17.3]} 27... Rxd6 {[%clk
0:02:36.9]} 28. Nc4 {[%clk 0:02:03.6]} 28... Rd8 {[%clk 0:02:34.3]} 29. Rd1
{[%clk 0:02:00.1]} 29... Rxd1 {[%clk 0:02:33.9]} 30. Kxd1 {[%clk 0:02:00.2]}
30... Bf8 {[%clk 0:02:31]} 31. Nxe5 {[%clk 0:01:58.8]} 31... Bc5 {[%clk
0:02:31.1]} 32. Ke2 {[%clk 0:01:57.8]} 32... Bd6 {[%clk 0:02:26.9]} 33. Nc4
{[%clk 0:01:54]} 33... Bc7 {[%clk 0:02:26.3]} 34. Kd3 {[%clk 0:01:39.6]} 34...
Kf8 {[%clk 0:02:23.3]} 35. e5 {[%clk 0:01:36.1]} 35... Ke7 {[%clk 0:02:23.1]}
36. Ke4 {[%clk 0:01:35.9]} 36... Ke6 {[%clk 0:02:23.6]} 37. f4 {[%clk
0:01:35.3]} 37... f6 {[%clk 0:02:23.7]} 38. f5+ {[%clk 0:01:31.4]} 38... Ke7
{[%clk 0:02:23.9]} 39. b4 {[%clk 0:01:22.3]} 39... Kf7 {[%clk 0:02:13.4]} 40.
Nd6+ {[%clk 0:01:18.5]} 40... Bxd6 {[%clk 0:02:12.9]} 41. exd6 {[%clk
0:01:18.7]} 41... Ke8 {[%clk 0:02:13]} 42. Kd4 {[%clk 0:01:18.7]} 42... Kd7
{[%clk 0:02:13.1]} 43. Kc5 {[%clk 0:01:18.8]} 43... Kd8 {[%clk 0:01:54.3]} 44.
Kb6 {[%clk 0:01:16.3]} 44... Kc8 {[%clk 0:01:54.8]} 45. c4 {[%clk 0:01:14.9]}
45... Kd7 {[%clk 0:01:55.7]} 46. Kxb7 {[%clk 0:01:14.7]} 46... Kxd6 {[%clk
0:01:55.8]} 47. Kxa6 {[%clk 0:01:14.5]} 47... h5 {[%clk 0:01:55]} 48. gxh5
{[%clk 0:01:13.9]} 48... g4 {[%clk 0:01:55.9]} 49. h6 {[%clk 0:01:13.4]} 49...
Ke5 {[%clk 0:01:56.8]} 50. h7 {[%clk 0:01:13.8]} 50... Kxf5 {[%clk 0:01:57.7]}
51. h8=Q {[%clk 0:01:14]} 51... Ke4 {[%clk 0:01:58.6]} 52. Qxf6 {[%clk
0:01:13.2]} 52... Ke3 {[%clk 0:01:57.3]} 53. Qf4+ {[%clk 0:01:12.6]} 53... Kd3
{[%clk 0:01:57.4]} 54. b5 {[%clk 0:01:12.1]} 1-0

[Event "Late-Titled-Tuesday-Blitz-April-16-2024"]
[Site "Chess.com"]
[Date "2024.04.16"]
[Round "5"]
[White "Brown_Mamba24"]
[Black "a-z30"]
[Result "1-0"]
[WhiteElo "2649"]
[BlackElo "2390"]
[TimeControl "180+1"]
[EndTime "14:50:54 PDT"]
[Termination "Brown_Mamba24 won by resignation"]

1. d4 {[%clk 0:03:00.9]} 1... Nf6 {[%clk 0:02:59.3]} 2. c4 {[%clk 0:03:00.5]}
2... g6 {[%clk 0:02:49.5]} 3. Nc3 {[%clk 0:03:00.1]} 3... Bg7 {[%clk 0:02:49]}
4. e4 {[%clk 0:03:00.3]} 4... d6 {[%clk 0:02:48.7]} 5. Be2 {[%clk 0:03:01]} 5...
O-O {[%clk 0:02:48.3]} 6. Be3 {[%clk 0:03:01.8]} 6... Nbd7 {[%clk 0:02:12.5]} 7.
g4 {[%clk 0:03:01.2]} 7... c5 {[%clk 0:01:56.1]} 8. g5 {[%clk 0:03:00.1]} 8...
Ne8 {[%clk 0:01:55.5]} 9. d5 {[%clk 0:03:00]} 9... Nc7 {[%clk 0:01:51.5]} 10. h4
{[%clk 0:02:58.7]} 10... b5 {[%clk 0:01:46.1]} 11. cxb5 {[%clk 0:02:58.6]} 11...
a6 {[%clk 0:01:46]} 12. a4 {[%clk 0:02:56.9]} 12... axb5 {[%clk 0:01:21.2]} 13.
axb5 {[%clk 0:02:57.8]} 13... Rxa1 {[%clk 0:01:20.7]} 14. Qxa1 {[%clk
0:02:58.4]} 14... e6 {[%clk 0:01:21.2]} 15. dxe6 {[%clk 0:02:40.8]} 15... Nxe6
{[%clk 0:01:20.6]} 16. Nf3 {[%clk 0:02:40]} 16... Nd4 {[%clk 0:01:13.8]} 17.
Bxd4 {[%clk 0:02:36.2]} 17... cxd4 {[%clk 0:01:13.2]} 18. Nd5 {[%clk 0:02:36.6]}
18... Re8 {[%clk 0:01:03.7]} 19. Nd2 {[%clk 0:02:20.4]} 19... Bb7 {[%clk
0:00:55.1]} 20. Bc4 {[%clk 0:02:12.8]} 20... Nb6 {[%clk 0:00:50.2]} 21. Nxb6
{[%clk 0:02:10.2]} 21... Qxb6 {[%clk 0:00:26]} 22. O-O {[%clk 0:02:08.5]} 22...
h6 {[%clk 0:00:10.8]} 23. Rc1 {[%clk 0:02:03.2]} 23... hxg5 {[%clk 0:00:10.1]}
24. hxg5 {[%clk 0:02:02.4]} 24... Bxe4 {[%clk 0:00:07.6]} 25. Nxe4 {[%clk
0:02:01.9]} 25... Rxe4 {[%clk 0:00:06.4]} 26. Qa8+ {[%clk 0:02:02.1]} 26... Bf8
{[%clk 0:00:06.2]} 27. Qxe4 {[%clk 0:02:02.3]} 1-0

[Event "Late-Titled-Tuesday-Blitz-April-16-2024"]
[Site "Chess.com"]
[Date "2024.04.16"]
[Round "5"]
[White "ritanovikova"]
[Black "Yushko_Olga"]
[Result "0-1"]
[WhiteElo "2156"]
[BlackElo "2297"]
[TimeControl "180+1"]
[EndTime "14:51:00 PDT"]
[Termination "Yushko_Olga won by resignation"]

1. d4 {[%clk 0:02:52.9]} 1... Nf6 {[%clk 0:02:43.5]} 2. Bf4 {[%clk 0:02:52.4]}
2... e6 {[%clk 0:02:41]} 3. Nd2 {[%clk 0:02:46.4]} 3... d5 {[%clk 0:02:29.3]} 4.
c3 {[%clk 0:02:43.5]} 4... Bd6 {[%clk 0:02:25.9]} 5. Bg3 {[%clk 0:02:40.4]} 5...
c5 {[%clk 0:02:20]} 6. e3 {[%clk 0:02:40.2]} 6... Qc7 {[%clk 0:02:17.6]} 7. Bb5+
{[%clk 0:02:35.8]} 7... Nbd7 {[%clk 0:02:14.6]} 8. Bxd7+ {[%clk 0:02:35.6]} 8...
Bxd7 {[%clk 0:02:14]} 9. Ne2 {[%clk 0:02:36]} 9... O-O {[%clk 0:02:04.9]} 10.
Nf3 {[%clk 0:02:31.5]} 10... Ne4 {[%clk 0:02:02.2]} 11. Bxd6 {[%clk 0:02:29.5]}
11... Qxd6 {[%clk 0:02:03.1]} 12. Ne5 {[%clk 0:02:29.2]} 12... a5 {[%clk
0:01:59.6]} 13. Ng3 {[%clk 0:02:28]} 13... Bb5 {[%clk 0:01:55.8]} 14. Nxe4
{[%clk 0:02:25.5]} 14... dxe4 {[%clk 0:01:54.9]} 15. a4 {[%clk 0:02:06.9]} 15...
Ba6 {[%clk 0:01:51.6]} 16. b3 {[%clk 0:01:41.2]} 16... Rfc8 {[%clk 0:01:45]} 17.
Nc4 {[%clk 0:01:40.5]} 17... Bxc4 {[%clk 0:01:42.6]} 18. bxc4 {[%clk 0:01:41.4]}
18... cxd4 {[%clk 0:01:40.9]} 19. cxd4 {[%clk 0:01:35.8]} 19... Qb4+ {[%clk
0:01:37.2]} 20. Qd2 {[%clk 0:01:16]} 20... Qxc4 {[%clk 0:01:37.5]} 21. f3 {[%clk
0:01:11.4]} 21... exf3 {[%clk 0:01:34.8]} 22. gxf3 {[%clk 0:01:12.3]} 22... Qb3
{[%clk 0:01:31.7]} 23. Ra2 {[%clk 0:00:51.4]} 23... Qb1+ {[%clk 0:01:29.4]} 0-1

[Event "Late-Titled-Tuesday-Blitz-April-16-2024"]
[Site "Chess.com"]
[Date "2024.04.16"]
[Round "5"]
[White "PhileKhoob"]
[Black "Lady_Nika"]
[Result "0-1"]
[WhiteElo "2295"]
[BlackElo "2491"]
[TimeControl "180+1"]
[EndTime "14:51:07 PDT"]
[Termination "Lady_Nika won by resignation"]

1. Nf3 {[%clk 0:02:59.4]} 1... d5 {[%clk 0:02:58.6]} 2. g3 {[%clk 0:02:59.6]}
2... c6 {[%clk 0:02:59.5]} 3. Bg2 {[%clk 0:03:00.1]} 3... Nf6 {[%clk 0:02:59.8]}
4. c4 {[%clk 0:03:00.5]} 4... g6 {[%clk 0:03:00.7]} 5. O-O {[%clk 0:03:01]} 5...
Bg7 {[%clk 0:03:01]} 6. d4 {[%clk 0:03:01.6]} 6... O-O {[%clk 0:03:01.3]} 7. a4
{[%clk 0:03:02.2]} 7... a5 {[%clk 0:03:00.9]} 8. cxd5 {[%clk 0:03:01.3]} 8...
cxd5 {[%clk 0:02:59.9]} 9. Qb3 {[%clk 0:03:01.5]} 9... Nc6 {[%clk 0:02:56.4]}
10. Nc3 {[%clk 0:03:01.7]} 10... e6 {[%clk 0:02:55.8]} 11. Nb5 {[%clk
0:03:01.1]} 11... Qb6 {[%clk 0:02:55.5]} 12. Bf4 {[%clk 0:02:59.6]} 12... Ne8
{[%clk 0:02:52.5]} 13. Qa3 {[%clk 0:02:56.4]} 13... Bd7 {[%clk 0:02:45]} 14.
Rac1 {[%clk 0:02:53.1]} 14... h6 {[%clk 0:02:39.4]} 15. Rc5 {[%clk 0:02:42.8]}
15... g5 {[%clk 0:02:38.2]} 16. Be5 {[%clk 0:02:38.2]} 16... Nxe5 {[%clk
0:02:33.9]} 17. Nxe5 {[%clk 0:02:39.1]} 17... Bxb5 {[%clk 0:02:32.4]} 18. Rxb5
{[%clk 0:02:37]} 18... Qxd4 {[%clk 0:02:32.2]} 19. Nd7 {[%clk 0:02:36.5]} 19...
Ra6 {[%clk 0:02:15.5]} 20. Nxf8 {[%clk 0:02:28.5]} 20... Bxf8 {[%clk 0:02:15.3]}
21. Qa2 {[%clk 0:02:20.9]} 21... Nd6 {[%clk 0:02:11]} 22. Rb3 {[%clk 0:02:21.3]}
22... Rc6 {[%clk 0:02:09.1]} 23. Rd3 {[%clk 0:02:18.3]} 23... Qe5 {[%clk
0:02:05]} 24. Qb3 {[%clk 0:02:12.2]} 24... Bg7 {[%clk 0:02:03.7]} 25. e3 {[%clk
0:02:01]} 25... Qxb2 {[%clk 0:01:59.9]} 26. Qxb2 {[%clk 0:02:00.6]} 26... Bxb2
{[%clk 0:02:00.8]} 27. Rb3 {[%clk 0:02:01.1]} 27... Bc3 {[%clk 0:01:59.4]} 28.
Rc1 {[%clk 0:01:52.9]} 28... Bb4 {[%clk 0:01:59]} 29. Rbb1 {[%clk 0:01:52.9]}
29... Kg7 {[%clk 0:01:53.6]} 30. Bf1 {[%clk 0:01:50.2]} 30... Kf6 {[%clk
0:01:50.2]} 31. Bd3 {[%clk 0:01:49.8]} 31... e5 {[%clk 0:01:44.9]} 32. Kf1
{[%clk 0:01:47.7]} 32... Ke6 {[%clk 0:01:44.2]} 33. f3 {[%clk 0:01:46.3]} 33...
f5 {[%clk 0:01:44.1]} 34. g4 {[%clk 0:01:45.9]} 34... fxg4 {[%clk 0:01:42.6]}
35. fxg4 {[%clk 0:01:46.8]} 35... e4 {[%clk 0:01:43]} 36. Bb5 {[%clk 0:01:44.4]}
36... Rxc1+ {[%clk 0:01:41.1]} 37. Rxc1 {[%clk 0:01:44.4]} 37... Bd2 {[%clk
0:01:40.6]} 38. Rc7 {[%clk 0:01:42.7]} 38... Bxe3 {[%clk 0:01:40.5]} 39. Bd7+
{[%clk 0:01:42.1]} 39... Ke5 {[%clk 0:01:40.1]} 40. Ke2 {[%clk 0:01:40.3]} 40...
Bf4 {[%clk 0:01:38.1]} 41. h3 {[%clk 0:01:39.5]} 41... d4 {[%clk 0:01:36.1]} 42.
Rc5+ {[%clk 0:01:39]} 42... Kf6 {[%clk 0:01:36.2]} 43. Rd5 {[%clk 0:01:34.8]}
43... d3+ {[%clk 0:01:36.2]} 44. Kd1 {[%clk 0:01:29.9]} 44... Nc4 {[%clk
0:01:36.3]} 45. Rd4 {[%clk 0:01:29.3]} 45... Ne3+ {[%clk 0:01:36.4]} 46. Kd2
{[%clk 0:01:21.4]} 46... Nf5+ {[%clk 0:01:36.3]} 47. Kc3 {[%clk 0:01:20.7]}
47... Nxd4 {[%clk 0:01:37.2]} 0-1

[Event "Late-Titled-Tuesday-Blitz-April-16-2024"]
[Site "Chess.com"]
[Date "2024.04.16"]
[Round "5"]
[White "azikom"]
[Black "expii"]
[Result "1-0"]
[WhiteElo "2688"]
[BlackElo "2214"]
[TimeControl "180+1"]
[EndTime "14:51:10 PDT"]
[Termination "azikom won by resignation"]

1. c4 {[%clk 0:02:59.6]} 1... e6 {[%clk 0:02:34]} 2. Nc3 {[%clk 0:03:00.5]} 2...
d5 {[%clk 0:02:32.9]} 3. e3 {[%clk 0:03:00.8]} 3... c5 {[%clk 0:02:32.4]} 4.
cxd5 {[%clk 0:03:00.3]} 4... exd5 {[%clk 0:02:33.3]} 5. d4 {[%clk 0:02:59.9]}
5... c4 {[%clk 0:02:33.4]} 6. g3 {[%clk 0:02:54.9]} 6... Nc6 {[%clk 0:02:32.5]}
7. Bg2 {[%clk 0:02:55.3]} 7... Nf6 {[%clk 0:02:31.8]} 8. Nge2 {[%clk 0:02:55.6]}
8... Be6 {[%clk 0:02:30.7]} 9. Nf4 {[%clk 0:02:51.4]} 9... Bb4 {[%clk
0:02:28.2]} 10. O-O {[%clk 0:02:50.6]} 10... O-O {[%clk 0:02:24]} 11. Bd2 {[%clk
0:02:45]} 11... Re8 {[%clk 0:02:07.1]} 12. a3 {[%clk 0:02:35.3]} 12... Bd6
{[%clk 0:01:57.6]} 13. Ncxd5 {[%clk 0:02:27.3]} 13... Nxd5 {[%clk 0:01:53.1]}
14. Nxd5 {[%clk 0:02:20.6]} 14... Bxd5 {[%clk 0:01:51.6]} 15. Bxd5 {[%clk
0:02:19.9]} 15... Bxg3 {[%clk 0:01:41.3]} 16. Bxf7+ {[%clk 0:02:19.8]} 16...
Kxf7 {[%clk 0:01:39.1]} 17. fxg3+ {[%clk 0:02:20.7]} 17... Kg8 {[%clk
0:01:32.6]} 18. Qf3 {[%clk 0:02:17.3]} 18... Rf8 {[%clk 0:01:30.5]} 19. Qe4
{[%clk 0:02:13.4]} 19... Qd6 {[%clk 0:01:18.5]} 20. Rxf8+ {[%clk 0:02:11.5]}
20... Rxf8 {[%clk 0:01:19.4]} 21. Bc3 {[%clk 0:01:59.3]} 21... Kh8 {[%clk
0:01:07]} 22. d5 {[%clk 0:01:52.5]} 22... Qe7 {[%clk 0:00:54]} 23. Qxe7 {[%clk
0:01:51.3]} 23... Nxe7 {[%clk 0:00:54.9]} 24. e4 {[%clk 0:01:51.8]} 24... Rd8
{[%clk 0:00:53.1]} 25. Kg2 {[%clk 0:01:51.2]} 25... Kg8 {[%clk 0:00:46.1]} 26.
h4 {[%clk 0:01:44.4]} 26... Kf7 {[%clk 0:00:43.2]} 27. Rf1+ {[%clk 0:01:43.4]}
27... Kg8 {[%clk 0:00:40.3]} 28. Kf3 {[%clk 0:01:39.4]} 28... Rf8+ {[%clk
0:00:25.9]} 29. Ke2 {[%clk 0:01:39.4]} 1-0

[Event "Late-Titled-Tuesday-Blitz-April-16-2024"]
[Site "Chess.com"]
[Date "2024.04.16"]
[Round "5"]
[White "NMJeevanK"]
[Black "N_I_Chess"]
[Result "1-0"]
[WhiteElo "2561"]
[BlackElo "2386"]
[TimeControl "180+1"]
[EndTime "14:51:12 PDT"]
[Termination "NMJeevanK won by resignation"]

1. e4 {[%clk 0:03:00.9]} 1... Nf6 {[%clk 0:02:59.4]} 2. e5 {[%clk 0:03:00.9]}
2... Nd5 {[%clk 0:02:59.1]} 3. d4 {[%clk 0:03:01.8]} 3... d6 {[%clk 0:02:58.4]}
4. c4 {[%clk 0:03:02.5]} 4... Nb6 {[%clk 0:02:58.1]} 5. exd6 {[%clk 0:03:03.4]}
5... cxd6 {[%clk 0:02:59]} 6. Nc3 {[%clk 0:03:03.2]} 6... g6 {[%clk 0:02:55.2]}
7. Be2 {[%clk 0:03:01.2]} 7... Bg7 {[%clk 0:02:54.1]} 8. h3 {[%clk 0:03:01.6]}
8... O-O {[%clk 0:02:50.3]} 9. Nf3 {[%clk 0:03:02.3]} 9... Bf5 {[%clk
0:02:47.6]} 10. O-O {[%clk 0:03:01.9]} 10... d5 {[%clk 0:02:20.5]} 11. c5 {[%clk
0:02:57.7]} 11... Nc4 {[%clk 0:01:59.5]} 12. Qb3 {[%clk 0:02:53.3]} 12... Nc6
{[%clk 0:01:47.2]} 13. Qxb7 {[%clk 0:02:24.4]} 13... Nxd4 {[%clk 0:01:37]} 14.
Nxd4 {[%clk 0:02:19.9]} 14... Bxd4 {[%clk 0:01:37.5]} 15. Nxd5 {[%clk
0:02:09.6]} 15... Na5 {[%clk 0:00:33.3]} 16. Nxe7+ {[%clk 0:02:09.3]} 16... Kh8
{[%clk 0:00:32.9]} 17. Qb4 {[%clk 0:02:05.9]} 17... Be6 {[%clk 0:00:25.9]} 18.
Rd1 {[%clk 0:01:55.6]} 18... Qxe7 {[%clk 0:00:17.1]} 19. Qxd4+ {[%clk
0:01:53.6]} 19... Kg8 {[%clk 0:00:16.8]} 20. Bh6 {[%clk 0:01:53.3]} 20... f6
{[%clk 0:00:14.2]} 21. Bxf8 {[%clk 0:01:53.5]} 21... Rxf8 {[%clk 0:00:14.9]} 22.
Qd6 {[%clk 0:01:53.7]} 22... Re8 {[%clk 0:00:14]} 23. Bb5 {[%clk 0:01:52.7]}
23... Qxd6 {[%clk 0:00:13.2]} 24. Rxd6 {[%clk 0:01:53.4]} 24... Re7 {[%clk
0:00:13.8]} 25. Re1 {[%clk 0:01:53.7]} 25... Kf7 {[%clk 0:00:10.9]} 26. b4
{[%clk 0:01:54]} 26... Nb7 {[%clk 0:00:08.8]} 27. Rdxe6 {[%clk 0:01:54.3]} 27...
Rxe6 {[%clk 0:00:09.7]} 28. Bc4 {[%clk 0:01:54.8]} 28... Nd8 {[%clk 0:00:10.1]}
29. c6 {[%clk 0:01:54.5]} 29... Ke7 {[%clk 0:00:10.7]} 30. Bxe6 {[%clk
0:01:54.4]} 30... Nxe6 {[%clk 0:00:11.6]} 31. c7 {[%clk 0:01:54.7]} 31... Kd7
{[%clk 0:00:12.2]} 32. Rxe6 {[%clk 0:01:54.5]} 1-0

[Event "Late-Titled-Tuesday-Blitz-April-16-2024"]
[Site "Chess.com"]
[Date "2024.04.16"]
[Round "5"]
[White "Jagerrmeisterr"]
[Black "schachsensei_YT"]
[Result "1-0"]
[WhiteElo "2714"]
[BlackElo "2332"]
[TimeControl "180+1"]
[EndTime "14:51:13 PDT"]
[Termination "Jagerrmeisterr won by resignation"]

1. e4 {[%clk 0:03:00.9]} 1... c5 {[%clk 0:02:57.7]} 2. Nc3 {[%clk 0:02:59.7]}
2... e6 {[%clk 0:02:57.5]} 3. Nge2 {[%clk 0:02:55.8]} 3... Nc6 {[%clk
0:02:55.7]} 4. g3 {[%clk 0:02:54]} 4... Nf6 {[%clk 0:02:54.2]} 5. Bg2 {[%clk
0:02:53.5]} 5... Be7 {[%clk 0:02:49.3]} 6. O-O {[%clk 0:02:51.6]} 6... O-O
{[%clk 0:02:49]} 7. h3 {[%clk 0:02:44.9]} 7... d6 {[%clk 0:02:45.8]} 8. f4
{[%clk 0:02:38.3]} 8... Rb8 {[%clk 0:02:38.1]} 9. d3 {[%clk 0:02:27.1]} 9... Qc7
{[%clk 0:02:11.9]} 10. g4 {[%clk 0:02:20.2]} 10... b5 {[%clk 0:02:10.7]} 11. Ng3
{[%clk 0:02:19.7]} 11... d5 {[%clk 0:01:56.2]} 12. g5 {[%clk 0:02:12.2]} 12...
Nd7 {[%clk 0:01:46.1]} 13. exd5 {[%clk 0:02:01.9]} 13... Nd4 {[%clk 0:01:45.7]}
14. dxe6 {[%clk 0:01:49.3]} 14... fxe6 {[%clk 0:01:46.6]} 15. Nce4 {[%clk
0:01:48.9]} 15... Nb6 {[%clk 0:01:44.1]} 16. c3 {[%clk 0:01:40.5]} 16... Nc6
{[%clk 0:01:33.4]} 17. g6 {[%clk 0:01:35.7]} 17... h6 {[%clk 0:01:26.8]} 18. Qh5
{[%clk 0:01:35]} 18... Rf5 {[%clk 0:00:28.4]} 19. Nxf5 {[%clk 0:01:33.2]} 19...
exf5 {[%clk 0:00:29.3]} 20. Ng3 {[%clk 0:01:34.1]} 20... Qd7 {[%clk 0:00:19.1]}
21. Re1 {[%clk 0:01:29.2]} 21... Bf6 {[%clk 0:00:14]} 22. Qxf5 {[%clk
0:01:28.7]} 1-0

[Event "Late-Titled-Tuesday-Blitz-April-16-2024"]
[Site "Chess.com"]
[Date "2024.04.16"]
[Round "5"]
[White "Misterfox120"]
[Black "TiagoMangialardo"]
[Result "1-0"]
[WhiteElo "2386"]
[BlackElo "2067"]
[TimeControl "180+1"]
[EndTime "14:51:16 PDT"]
[Termination "Misterfox120 won on time"]

1. d4 {[%clk 0:03:00.9]} 1... Nf6 {[%clk 0:02:58.4]} 2. Nc3 {[%clk 0:03:00.4]}
2... c5 {[%clk 0:02:48.6]} 3. d5 {[%clk 0:02:59.8]} 3... g6 {[%clk 0:02:48.2]}
4. e4 {[%clk 0:02:59.8]} 4... d6 {[%clk 0:02:47.8]} 5. Nf3 {[%clk 0:03:00.3]}
5... Bg7 {[%clk 0:02:47.8]} 6. Bc4 {[%clk 0:03:00.3]} 6... O-O {[%clk
0:02:47.2]} 7. O-O {[%clk 0:03:00.7]} 7... a6 {[%clk 0:02:33.8]} 8. a4 {[%clk
0:02:59.8]} 8... Bg4 {[%clk 0:02:32.1]} 9. h3 {[%clk 0:02:59.8]} 9... Bxf3
{[%clk 0:02:31.9]} 10. Qxf3 {[%clk 0:03:00.7]} 10... Nbd7 {[%clk 0:02:32.5]} 11.
Qd1 {[%clk 0:03:01.4]} 11... Nb6 {[%clk 0:01:56.8]} 12. Be2 {[%clk 0:02:52.5]}
12... Rc8 {[%clk 0:01:21.6]} 13. a5 {[%clk 0:02:40.2]} 13... Nbd7 {[%clk
0:01:20.8]} 14. Be3 {[%clk 0:02:39.4]} 14... c4 {[%clk 0:01:14.4]} 15. f3 {[%clk
0:02:11.8]} 15... Nh5 {[%clk 0:00:45.4]} 16. Qd2 {[%clk 0:02:01]} 16... Re8
{[%clk 0:00:11.6]} 17. Na4 {[%clk 0:01:56.8]} 17... e6 {[%clk 0:00:03.9]} 18.
dxe6 {[%clk 0:01:54.1]} 18... Rxe6 {[%clk 0:00:03.4]} 19. c3 {[%clk 0:01:50.4]}
19... Ng3 {[%clk 0:00:03.3]} 20. Rfd1 {[%clk 0:01:48.9]} 20... Qe8 {[%clk
0:00:02.2]} 21. Bf2 {[%clk 0:01:41.9]} 21... Nxe2+ {[%clk 0:00:01.9]} 22. Qxe2
{[%clk 0:01:42.8]} 22... Nc5 {[%clk 0:00:02.2]} 23. Nxc5 {[%clk 0:01:42.1]}
23... dxc5 {[%clk 0:00:01.9]} 24. Qxc4 {[%clk 0:01:42.4]} 1-0